[Event "Sydney Open 2019"]
[Site "Sydney"]
[Date "2019.04.24"]
[Round "1.1"]
[White "McGowan, Cameron"]
[Black "Kunte, Abhijit"]
[Result "0-1"]
[ECO "B22"]
[WhiteElo "2085"]
[BlackElo "2485"]
[Annotator "ChessBase"]
[PlyCount "64"]
[EventDate "2019.04.24"]
[EventType "swiss"]
[EventCountry "AUS"]
[SourceTitle "playchess.com"]
[Source "ChessBase"]
[SourceQuality "1"]
[TimeControl "5400+30"]

1. e4 {[%emt 0:00:00]} c5 {[%emt 0:00:00]} 2. Nf3 {[%emt 0:00:00]} e6 {[%emt 0:00:00]} 3. c3 {[%emt 0:00:00]} Nf6 {[%emt 0:00:14]} 4. e5 {[%emt 0:00:00]} Nd5 {[%emt 0:00:06]} 5. Bc4 {[%emt 0:00:00]} d6 {[%emt 0:00:49]} 6. d4 {[%emt 0:01:06]} cxd4 {[%emt 0:00:13]} 7. cxd4 {[%emt 0:00:35]} Be7 {[%emt 0:00:26]} 8. O-O {[%emt 0:00:26]} O-O {[%emt 0:00:11]} 9. Qe2 {[%emt 0:00:15]} b6 {[%emt 0:03:08]} 10. Nc3 {[%emt 0:04:25]} Nxc3 {[%emt 0:00:16]} 11. bxc3 {[%emt 0:00:06]} Bb7 {[%emt 0:00:05]} 12. Bf4 {[%emt 0:03:14]} Qc7 {[%emt 0:06:52]} 13. exd6 {[%emt 0:11:00]} Bxd6 {[%emt 0:00:06]} 14. Bxd6 {[%emt 0:00:13]} Qxd6 {[%emt 0:00:07]} 15. Ne5 {[%emt 0:00:45]} Nd7 {[%emt 0:00:13]} 16. f4 {[%emt 0:02:04]} Rac8 {[%emt 0:00:57]} 17. Rac1 {[%emt 0:02:32]} Rc7 {[%emt 0:03:42]} 18. Bd3 {[%emt 0:10:30]} g6 {[%emt 0:03:27]} 19. Ng4 {[%emt 0:16:39]} Rxc3 {[%emt 0:09:10]} 20. Qe3 {[%emt 0:20:43]} Rxc1 {[%emt 0:03:13]} 21. Rxc1 {[%emt 0:00:21]} h5 {[%emt 0:02:06]} 22. Ne5 {[%emt 0:09:05]} Rc8 {[%emt 0:02:44]} 23. Rxc8+ {[%emt 0:02:44]} Bxc8 {[%emt 0:00:06]} 24. f5 {[%emt 0:02:46]} exf5 {[%emt 0:00:46]} 25. Bxf5 {[%emt 0:02:41]} Nxe5 {[%emt 0:00:08]} 26. Bxc8 {[%emt 0:00:29]} Nc6 {[%emt 0:00:08]} 27. d5 {[%emt 0:03:11]} Ne7 {[%emt 0:00:07]} 28. Bb7 {[%emt 0:00:55]} Nxd5 {[%emt 0:00:09]} 29. Qd4 {[%emt 0:00:46]} Qe7 {[%emt 0:00:06]} 30. Ba6 {[%emt 0:00:45]} Qe1+ {[%emt 0:00:07]} 31. Bf1 {[%emt 0:00:02]} Ne3 {[%emt 0:00:08]} 32. Qd8+ {[%emt 0:02:01]} Kh7 {[%emt 0:00:05]} 0-1

[Event "Sydney Open 2019"]
[Site "Sydney"]
[Date "2019.04.24"]
[Round "2.1"]
[White "Kunte, Abhijit"]
[Black "Steadman, Michael V R"]
[Result "1-0"]
[ECO "E65"]
[WhiteElo "2485"]
[BlackElo "2258"]
[Annotator "ChessBase"]
[PlyCount "61"]
[EventDate "2019.04.24"]
[EventType "swiss"]
[EventCountry "AUS"]
[SourceTitle "playchess.com"]
[Source "ChessBase"]
[SourceQuality "1"]
[TimeControl "5400+30"]

1. d4 Nf6 2. Nf3 g6 3. g3 Bg7 4. Bg2 O-O 5. O-O d6 6. c4 c5 7. Nc3 a6 8. h3 {[%emt 1:34:00]} Nc6 {[%emt 1:34:00]} 9. dxc5 {[%emt 0:00:30]} dxc5 {[%emt 0:00:30]} 10. Be3 {[%emt 0:00:30]} Qa5 {[%emt 0:00:30]} 11. Nd2 {[%emt 0:00:30]} Nd4 {[%emt 0:00:30]} 12. Nd5 {[%emt 0:00:30]} Nxd5 {[%emt 0:00:30]} 13. cxd5 {[%emt 0:00:30]} Nf5 {[%emt 0:00:30]} 14. Bf4 {[%emt 0:00:30]} b5 {[%emt 0:00:30]} 15. e4 {[%emt 0:00:30]} Nd4 {[%emt 0:00:30]} 16. e5 {[%emt 0:00:30]} Bb7 {[%emt 0:00:30]} 17. Nb3 {[%emt 0:00:30]} Nxb3 {[%emt 0:00:30]} 18. axb3 {[%emt 0:00:30]} Qb6 {[%emt 0:00:30]} 19. Qe2 {[%emt 0:00:30]} a5 {[%emt 0:00:30]} 20. Qe3 {[%emt 0:00:30]} Rfd8 {[%emt 0:00:30]} 21. Rfd1 {[%emt 0:00:30]} Ra6 {[%emt 0:00:30]} 22. Rac1 {[%emt 0:00:30]} Rc8 {[%emt 0:00:30]} 23. e6 {[%emt 0:00:30]} Qa7 {[%emt 0:00:30]} 24. d6 {[%emt 0:00:30]} Bxg2 {[%emt 0:00:30]} 25. d7 {[%emt 0:00:30]} Rd8 {[%emt 0:00:30]} 26. Qxc5 {[%emt 0:00:30]} Qa8 {[%emt 0:00:30]} 27. Qc8 {[%emt 0:00:30]} Bb7 {[%emt 0:00:30]} 28. Qxd8+ {[%emt 0:00:30]} Qxd8 {[%emt 0:00:30]} 29. Bc7 {[%emt 0:00:30]} Ra8 {[%emt 0:00:30]} 30. Bxd8 {[%emt 0:00:30]} Rxd8 {[%emt 0:00:30]} 31. Rc7 {[%emt 0:00:30]} 1-0

[Event "Sydney Open 2019"]
[Site "Sydney"]
[Date "2019.04.24"]
[Round "2.4"]
[White "Gong, Daniel Hanwen"]
[Black "Dale, Ari"]
[Result "1/2-1/2"]
[ECO "B03"]
[WhiteElo "2246"]
[BlackElo "2372"]
[Annotator "ChessBase"]
[PlyCount "73"]
[EventDate "2019.04.24"]
[EventType "swiss"]
[EventCountry "AUS"]
[SourceTitle "playchess.com"]
[Source "ChessBase"]
[SourceQuality "1"]
[TimeControl "5400+30"]

1. e4 {[%emt 0:00:00]} Nf6 {[%emt 0:00:00]} 2. e5 {[%emt 0:00:00]} Nd5 {[%emt 0:00:00]} 3. d4 {[%emt 0:00:00]} d6 {[%emt 0:00:00]} 4. c4 {[%emt 0:00:00]} Nb6 {[%emt 0:00:04]} 5. exd6 {[%emt 0:00:00]} exd6 {[%emt 0:00:05]} 6. Nc3 {[%emt 0:01:30]} Nc6 {[%emt 0:00:14]} 7. Be3 {[%emt 0:00:04]} Be7 {[%emt 0:00:32]} 8. Bd3 {[%emt 0:00:11]} O-O {[%emt 0:00:58]} 9. Nge2 {[%emt 0:00:05]} Nb4 {[%emt 0:01:48]} 10. b3 {[%emt 0:00:21]} Nxd3+ 11. Qxd3 {[%emt 0:00:03]} c6 {[%emt 0:10:53]} 12. O-O {[%emt 0:01:42]} d5 {[%emt 0:01:38]} 13. c5 {[%emt 0:01:22]} Nd7 {[%emt 0:00:04]} 14. b4 {[%emt 0:00:13]} Re8 {[%emt 0:01:36]} 15. b5 {[%emt 0:04:49]} Nf6 {[%emt 0:03:51]} 16. Ng3 {[%emt 0:05:26]} b6 {[%emt 0:24:47]} 17. bxc6 {[%emt 0:09:24]} Qc7 {[%emt 0:00:15]} 18. cxb6 {[%emt 0:16:19]} Qxc6 {[%emt 0:00:20]} 19. Rfc1 {[%emt 0:03:02]} Qxb6 {[%emt 0:02:06]} 20. Rab1 {[%emt 0:00:42]} Qa5 {[%emt 0:04:00]} 21. Nb5 {[%emt 0:17:07]} Ba6 {[%emt 0:04:45]} 22. Qd2 {[%emt 0:00:58]} Qxd2 {[%emt 0:08:42]} 23. Bxd2 {[%emt 0:00:04]} Bxb5 {[%emt 0:02:03]} 24. Rxb5 {[%emt 0:00:04]} Bf8 {[%emt 0:06:08]} 25. Rb7 {[%emt 0:11:44]} Re7 {[%emt 0:01:52]} 26. Rxe7 {[%emt 0:06:29]} Bxe7 {[%emt 0:00:18]} 27. Nf5 {[%emt 0:00:24]} Bd8 {[%emt 0:02:17]} 28. Bf4 {[%emt 0:04:36]} Nd7 {[%emt 0:06:15]} 29. Ne3 {[%emt 0:02:20]} Bf6 {[%emt 0:05:34]} 30. Nxd5 {[%emt 0:01:45]} Bxd4 {[%emt 0:01:12]} 31. Ne7+ {[%emt 0:00:04]} Kf8 {[%emt 0:00:40]} 32. Nc6 {[%emt 0:00:06]} Bb6 {[%emt 0:02:55]} 33. Bd6+ {[%emt 0:00:35]} Kg8 {[%emt 0:00:04]} 34. Nb8 {[%emt 0:00:40]} Nc5 {[%emt 0:02:43]} 35. a4 {[%emt 0:02:59]} h6 {[%emt 0:02:05]} 36. a5 {[%emt 0:00:04]} Ne4 {[%emt 0:00:05]} 37. axb6 {[%emt 0:00:03]} 1/2-1/2

[Event "Sydney Open 2019"]
[Site "Sydney"]
[Date "2019.04.24"]
[Round "2.6"]
[White "McClymont, Brodie"]
[Black "Winkelman, Albert"]
[Result "1-0"]
[ECO "B35"]
[WhiteElo "2360"]
[BlackElo "2212"]
[Annotator "ChessBase"]
[PlyCount "105"]
[EventDate "2019.04.24"]
[EventType "swiss"]
[EventCountry "AUS"]
[SourceTitle "playchess.com"]
[Source "ChessBase"]
[SourceQuality "1"]
[TimeControl "5400+30"]

1. e4 c5 2. Nf3 Nc6 3. d4 cxd4 4. Nxd4 g6 5. Nc3 Bg7 6. Be3 Nf6 7. Bc4 Qa5 8. O-O {[%emt 1:34:00]} O-O {[%emt 1:34:00]} 9. Bb3 {[%emt 0:00:30]} d6 {[%emt 0:00:30]} 10. h3 Bd7 {[%emt 0:00:30]} 11. Re1 Rac8 12. Nd5 Nxd5 13. exd5 Ne5 14. Qe2 Qc7 15. c3 Rfe8 16. a4 Nc4 17. Nb5 Bxb5 18. axb5 Nxe3 19. Qxe3 b6 20. Ra4 Qd7 21. Qe2 Rc5 22. Re4 Bf6 23. c4 Kf8 24. Bd1 e5 25. h4 Bg7 26. h5 f5 27. Rh4 Rcc8 28. hxg6 hxg6 29. g4 Qe7 30. Rh2 Qg5 31. Rg2 f4 32. Bc2 Kf7 33. Ra1 Rc7 34. Rh2 f3 35. Qxf3+ Qf4 36. Qe4 Qxe4 37. Bxe4 Rh8 38. Rxh8 Bxh8 39. g5 Bg7 40. b3 Bf8 41. Kg2 Be7 42. Rh1 Kg8 43. Rh6 Bxg5 44. Rxg6+ Rg7 45. Re6 Be7+ 46. Bg6 Bf8 47. Kf3 a6 48. bxa6 Ra7 49. Bd3 Rxa6 50. c5 Ra3 51. cxd6 Ra7 52. Bb5 Kf7 53. Be8+ 1-0

[Event "Sydney Open 2019"]
[Site "Sydney"]
[Date "2019.04.25"]
[Round "3.6"]
[White "Xie, George Wendi"]
[Black "Hu, Jason"]
[Result "1-0"]
[ECO "D11"]
[WhiteElo "2359"]
[BlackElo "2132"]
[Annotator "RC"]
[PlyCount "69"]
[EventDate "2019.04.24"]
[EventType "swiss"]
[EventCountry "AUS"]
[SourceTitle "playchess.com"]
[Source "ChessBase"]
[SourceQuality "1"]
[TimeControl "5400+30"]

1. d4 {[%emt 1:30:30]} d5 {[%emt 1:30:30]} 2. c4 {[%emt 0:00:30]} e6 {[%emt 0:00:30]} 3. Nf3 {[%emt 0:00:30]} Nf6 {[%emt 0:00:30]} 4. Qb3 {[%emt 0:00:30]} c6 {[%emt 0:00:30]} 5. Bg5 {[%emt 0:00:30]} Nbd7 {[%emt 0:00:30]} 6. Nbd2 {[%emt 0:00:30]} h6 {[%emt 0:00:30]} 7. Bh4 {[%emt 0:00:30]} Be7 {[%emt 0:00:30]} 8. e3 {[%emt 0:00:30]} O-O {[%emt 0:00:30]} 9. Bd3 {[%emt 0:00:30]} b6 {[%emt 0:00:30]} 10. O-O {[%emt 0:00:30]} c5 {[%emt 0:00:30]} 11. Rac1 {[%emt 0:00:30]} cxd4 {[%emt 0:00:30]} 12. exd4 {[%emt 0:00:30]} dxc4 {[%emt 0:00:30]} 13. Nxc4 {[%emt 0:00:30]} Bb7 {[%emt 0:00:30]} 14. Bb1 {[%emt 0:00:30]} Ne4 {[%emt 0:00:30]} 15. Na5 {[%emt 0:00:30]} Bd5 {[%emt 0:00:30]} 16. Bxe7 {[%emt 0:00:30]} Qxe7 {[%emt 0:00:30]} 17. Nc6 {[%emt 0:00:30]} Qd6 {[%emt 0:00:30]} 18. Qa4 {[%emt 0:00:30]} a6 {[%emt 0:00:30]} 19. Nce5 {[%emt 0:00:30]} b5 {[%emt 0:00:30]} 20. Qc2 {[%emt 0:00:30]} Nef6 {[%emt 0:00:30]} 21. Rfe1 {[%emt 0:00:30]} Bxf3 {[%emt 0:00:30]} 22. Nxf3 {[%emt 0:00:30]} Nb6 {[%emt 0:00:30]} 23. Qc5 {[%emt 0:00:30]} Rfd8 {[%emt 0:00:30]} 24. Kf1 {[%emt 0:00:30]} g6 {[%emt 0:00:30]} 25. Ne5 {[%emt 0:00:30]} Qxd4 {[%emt 0:00:30]} 26. Qe7 {[%emt 0:00:30]} Rf8 {[%emt 0:00:30]} 27. Qxf6 {[%emt 0:00:30]} Nd5 {[%emt 0:00:30]} 28. Qf3 {[%emt 0:00:30]} Qxb2 {[%emt 0:00:30]} 29. Qd3 {[%emt 0:00:30]} a5 {[%emt 0:00:30]} 30. Rc2 {[%emt 0:00:30]} Qa1 {[%emt 0:00:30]} 31. Rc5 {[%emt 0:00:30]} b4 {[%emt 0:00:30]} 32. Nxg6 {[%emt 0:00:30]} Rfd8 {[%emt 0:00:30]} 33. Ne5 {[%emt 0:00:30]} Nf6 {[%emt 0:00:30]} 34. Qg3+ {[%emt 0:00:30]} Kf8 {[%emt 0:00:30]} 35. Rc7 {[%emt 0:00:30]} 1-0

[Event "Sydney Open 2019"]
[Site "Sydney"]
[Date "2019.04.27"]
[Round "7.1"]
[White "Kunte, Abhijit"]
[Black "Lane, Gary W"]
[Result "1/2-1/2"]
[WhiteElo "2485"]
[BlackElo "2357"]
[PlyCount "39"]
[EventDate "2019.04.24"]
[EventType "swiss"]
[EventCountry "AUS"]
[TimeControl "5400+30"]
[WhiteClock "0:37:14"]
[BlackClock "0:52:11"]

1. Nf3 {[%emt 0:00:00]} d5 {[%emt 0:03:14]} 2. c4 {[%emt 0:02:01]} d4 {[%emt 0:01:15]} 3. g3 {[%emt 0:00:42]} Nc6 {[%emt 0:01:16]} 4. Bg2 {[%emt 0:00:07]} e5 {[%emt 0:00:06]} 5. d3 {[%emt 0:00:04]} Bb4+ {[%emt 0:00:51]} 6. Bd2 {[%emt 0:00:07]} a5 {[%emt 0:01:04]} 7. O-O {[%emt 0:00:38]} Nf6 {[%emt 0:00:28]} 8. Na3 {[%emt 0:00:28]} O-O {[%emt 0:01:25]} 9. Nc2 {[%emt 0:00:05]} Bc5 {[%emt 0:03:06]} 10. a3 {[%emt 0:05:09]} a4 {[%emt 0:09:22]} 11. Bg5 {[%emt 0:14:31]} h6 {[%emt 0:05:17]} 12. Bxf6 {[%emt 0:00:07]} Qxf6 {[%emt 0:00:03]} 13. Nb4 {[%emt 0:00:06]} Ne7 {[%emt 0:07:33]} 14. Nd2 {[%emt 0:05:26]} Qb6 {[%emt 0:19:02]} 15. Nc2 {[%emt 0:03:01]} f5 {[%emt 0:03:48]} 16. Rb1 {[%emt 0:00:10]} Qd6 {[%emt 0:01:38]} 17. Ra1 {[%emt 0:12:19]} Ra7 {[%emt 0:01:38]} 18. Qc1 {[%emt 0:01:48]} Bd7 {[%emt 0:01:05]} 19. b4 {[%emt 0:00:38]} axb3 {[%emt 0:00:05]} 20. Nxb3 {[%emt 0:00:22]} 1/2-1/2

[Event "Sydney Open 2019"]
[Site "Sydney"]
[Date "2019.04.27"]
[Round "7.4"]
[White "Steadman, Michael V R"]
[Black "McClymont, Brodie"]
[Result "0-1"]
[WhiteElo "2258"]
[BlackElo "2360"]
[PlyCount "60"]
[EventDate "2019.04.24"]
[EventType "swiss"]
[EventCountry "AUS"]
[TimeControl "5400+30"]
[WhiteClock "0:12:22"]
[BlackClock "0:22:53"]

1. d4 {[%emt 0:00:00]} Nf6 {[%emt 0:00:00]} 2. c4 {[%emt 0:00:00]} g6 {[%emt 0:00:00]} 3. Nc3 {[%emt 0:00:00]} Bg7 {[%emt 0:00:00]} 4. e4 {[%emt 0:00:00]} d6 {[%emt 0:00:00]} 5. Be2 {[%emt 0:00:00]} O-O {[%emt 0:00:02]} 6. Be3 {[%emt 0:00:03]} Na6 {[%emt 0:03:30]} 7. g4 {[%emt 0:03:42]} c5 {[%emt 0:00:17]} 8. d5 {[%emt 0:00:07]} e6 {[%emt 0:00:27]} 9. h3 {[%emt 0:02:28]} exd5 {[%emt 0:00:46]} 10. exd5 {[%emt 0:01:16]} Re8 {[%emt 0:02:24]} 11. Qc2 {[%emt 0:06:01]} b5 {[%emt 0:12:42]} 12. Nxb5 {[%emt 0:04:24]} Nb4 {[%emt 0:00:23]} 13. Qb1 {[%emt 0:02:39]} Nbxd5 {[%emt 0:08:18]} 14. cxd5 {[%emt 0:04:37]} Nxd5 {[%emt 0:01:16]} 15. Qd3 {[%emt 0:10:41]} Bb7 {[%emt 0:21:13]} 16. Nf3 {[%emt 0:05:24]} a6 {[%emt 0:00:19]} 17. Na3 {[%emt 0:04:54]} Bxb2 {[%emt 0:01:11]} 18. Nc2 {[%emt 0:05:20]} Bc3+ {[%emt 0:14:32]} 19. Kf1 {[%emt 0:01:29]} Bxa1 {[%emt 0:07:54]} 20. Nxa1 {[%emt 0:00:07]} Qf6 {[%emt 0:00:37]} 21. Kg2 {[%emt 0:01:05]} c4 {[%emt 0:05:15]} 22. Qd2 {[%emt 0:04:37]} c3 {[%emt 0:00:05]} 23. Qd3 {[%emt 0:00:39]} Nf4+ {[%emt 0:00:19]} 24. Bxf4 {[%emt 0:00:15]} Qxf4 {[%emt 0:00:03]} 25. Bd1 {[%emt 0:02:30]} Rac8 {[%emt 0:04:07]} 26. Nc2 {[%emt 0:01:20]} Be4 {[%emt 0:04:54]} 27. Qd4 {[%emt 0:14:10]} Rc4 {[%emt 0:00:30]} 28. Qb6 {[%emt 0:00:06]} h5 {[%emt 0:00:30]} 29. gxh5 {[%emt 0:00:30]} Rc5 {[%emt 0:00:39]} 30. Re1 {[%emt 0:03:43]} Rg5+ {[%emt 0:00:25]} 0-1

[Event "Sydney Open 2019"]
[Site "Sydney"]
[Date "2019.04.27"]
[Round "7.5"]
[White "Xie, George Wendi"]
[Black "Gong, Daniel Hanwen"]
[Result "1-0"]
[WhiteElo "2359"]
[BlackElo "2246"]
[PlyCount "83"]
[EventDate "2019.04.24"]
[EventType "swiss"]
[EventCountry "AUS"]
[TimeControl "5400+30"]
[WhiteClock "0:04:13"]
[BlackClock "1:06:14"]

1. d4 {[%emt 0:01:15]} Nf6 {[%emt 0:00:00]} 2. Nc3 {[%emt 0:00:04]} d5 {[%emt 0:01:31]} 3. Bg5 {[%emt 0:00:09]} g6 {[%emt 0:00:35]} 4. Qd2 {[%emt 0:00:03]} c6 {[%emt 0:03:23]} 5. f3 {[%emt 0:01:35]} h6 {[%emt 0:01:53]} 6. Bh4 {[%emt 0:01:12]} g5 {[%emt 0:00:12]} 7. Bg3 {[%emt 0:00:15]} Bf5 {[%emt 0:00:14]} 8. O-O-O {[%emt 0:00:44]} Nbd7 {[%emt 0:01:25]} 9. Qe1 {[%emt 0:08:19]} e6 {[%emt 0:06:01]} 10. e4 {[%emt 0:00:04]} Bh7 {[%emt 0:02:13]} 11. a3 {[%emt 0:00:14]} Nb6 {[%emt 1:14:20]} 12. h4 {[%emt 0:06:10]} Nh5 {[%emt 0:00:00]} 13. Bf2 {[%emt 0:01:51]} Be7 14. hxg5 {[%emt 0:00:00]} Bxg5+ 15. Kb1 {[%emt 0:00:00]} Bg6 16. Nh3 {[%emt 0:00:00]} Be7 17. g4 {[%emt 0:02:32]} Ng7 18. Nf4 {[%emt 0:00:00]} Qc7 19. Nxg6 {[%emt 0:00:00]} fxg6 20. exd5 {[%emt 0:00:00]} cxd5 21. Bg3 {[%emt 0:00:15]} Bd6 22. Nb5 {[%emt 0:00:20]} Bxg3 23. Nxc7+ {[%emt 0:00:05]} Bxc7 24. Qe3 {[%emt 0:01:46]} g5 25. Bb5+ {[%emt 0:06:25]} Ke7 26. Rh3 {[%emt 0:00:45]} a6 27. Bd3 {[%emt 0:00:05]} Raf8 28. Qe2 {[%emt 0:04:44]} Rf4 29. c3 {[%emt 0:00:05]} Kd7 30. Rdh1 {[%emt 0:00:05]} Rf6 31. Qc2 {[%emt 0:00:00]} Kc8 32. Bg6 {[%emt 0:00:05]} Rhf8 33. Rxh6 {[%emt 0:00:20]} Rxf3 34. Rh7 {[%emt 0:00:06]} Rf2 35. Qc1 {[%emt 0:02:31]} Ne8 36. Bxe8 {[%emt 0:01:01]} Rxe8 37. Rh8 {[%emt 0:00:56]} Rxh8 38. Rxh8+ {[%emt 0:00:05]} Kd7 39. Rh7+ {[%emt 0:00:05]} Kc6 40. Qe1 {[%emt 0:00:20]} Rf4 41. Qxe6+ {[%emt 0:00:05]} Bd6 42. Qe8+ {[%emt 0:00:10]} 1-0

[Event "Sydney Open 2019"]
[Site "Sydney"]
[Date "2019.04.27"]
[Round "7.6"]
[White "Solomon, Stephen J"]
[Black "Nakauchi, Gene"]
[Result "1-0"]
[WhiteElo "2338"]
[BlackElo "2221"]
[PlyCount "99"]
[EventDate "2019.04.24"]
[EventType "swiss"]
[EventCountry "AUS"]
[TimeControl "5400+30"]
[WhiteClock "0:00:09"]
[BlackClock "0:00:16"]

1. e4 {[%emt 1:08:42]} c5 {[%emt 1:30:20]} 2. Nf3 {[%emt 0:21:54]} e6 {[%emt 0:00:28]} 3. d4 {[%emt 0:00:45]} cxd4 {[%emt 0:00:30]} 4. Nxd4 {[%emt 0:00:31]} a6 {[%emt 0:00:32]} 5. Nc3 {[%emt 0:00:22]} b5 {[%emt 0:00:00]} 6. Bd3 {[%emt 0:00:34]} Bb7 {[%emt 0:00:00]} 7. O-O {[%emt 0:00:00]} Bc5 {[%emt 0:00:00]} 8. Nb3 {[%emt 0:00:00]} Ba7 {[%emt 0:00:59]} 9. e5 {[%emt 0:00:00]} f5 {[%emt 0:00:00]} 10. exf6 {[%emt 0:00:00]} Nxf6 {[%emt 0:00:00]} 11. Bg5 {[%emt 0:00:00]} O-O {[%emt 0:02:16]} 12. Qe2 {[%emt 0:00:54]} Qc7 {[%emt 0:00:00]} 13. Rad1 {[%emt 0:00:00]} Nc6 {[%emt 0:00:00]} 14. Be3 {[%emt 0:00:00]} Bxe3 {[%emt 0:00:00]} 15. Qxe3 {[%emt 0:03:24]} Nb4 {[%emt 0:00:00]} 16. a3 {[%emt 0:00:00]} Nbd5 {[%emt 0:00:00]} 17. Nxd5 {[%emt 0:00:00]} Nxd5 {[%emt 0:03:19]} 18. Qc5 {[%emt 0:00:00]} Qf4 {[%emt 0:00:00]} 19. Rde1 {[%emt 0:01:46]} d6 {[%emt 0:00:00]} 20. Qd4 {[%emt 0:00:00]} e5 {[%emt 0:00:00]} 21. Qe4 {[%emt 0:00:00]} Rab8 {[%emt 0:00:00]} 22. Qxh7+ {[%emt 0:00:00]} Kf7 {[%emt 0:02:23]} 23. Qg6+ {[%emt 0:00:29]} Ke7 {[%emt 0:00:21]} 24. g3 {[%emt 0:01:31]} Qf6 {[%emt 0:00:00]} 25. f4 {[%emt 0:00:40]} Qxg6 {[%emt 0:00:00]} 26. Bxg6 {[%emt 0:01:20]} Kf6 {[%emt 0:01:41]} 27. Be4 {[%emt 0:00:00]} Ke6 {[%emt 0:00:00]} 28. Bxd5+ {[%emt 0:00:00]} Kxd5 {[%emt 0:00:21]} 29. fxe5 {[%emt 0:01:06]} Rxf1+ {[%emt 0:00:13]} 30. Kxf1 {[%emt 0:00:00]} Rf8+ {[%emt 0:00:52]} 31. Ke2 {[%emt 0:00:22]} Re8 {[%emt 0:00:00]} 32. Kf2 {[%emt 0:00:00]} Rxe5 {[%emt 0:01:03]} 33. Rxe5+ {[%emt 0:01:57]} dxe5 {[%emt 0:00:56]} 34. Ke3 {[%emt 0:00:36]} Bc8 {[%emt 0:00:38]} 35. Nc1 {[%emt 0:00:00]} Bf5 {[%emt 0:00:24]} 36. Nd3 {[%emt 0:00:58]} a5 {[%emt 0:00:26]} 37. b3 {[%emt 0:00:00]} Be6 {[%emt 0:00:00]} 38. h4 {[%emt 0:00:32]} Bf5 {[%emt 0:00:23]} 39. c3 {[%emt 0:00:26]} Be6 {[%emt 0:00:59]} 40. Nb2 {[%emt 0:00:44]} Kd6 {[%emt 0:00:06]} 41. b4 {[%emt 0:00:20]} a4 {[%emt 0:01:00]} 42. c4 {[%emt 0:00:10]} Bxc4 {[%emt 0:00:15]} 43. Nxc4+ {[%emt 0:01:22]} bxc4 {[%emt 0:01:02]} 44. Ke4 {[%emt 0:00:00]} Ke6 {[%emt 0:00:24]} 45. g4 {[%emt 0:00:44]} Kf6 {[%emt 0:00:28]} 46. b5 {[%emt 0:00:43]} Ke6 {[%emt 0:00:33]} 47. h5 {[%emt 0:00:29]} Kd6 {[%emt 0:00:34]} 48. g5 {[%emt 0:00:22]} Kc5 {[%emt 0:00:29]} 49. h6 {[%emt 0:00:42]} gxh6 {[%emt 0:00:26]} 50. gxh6 {[%emt 0:00:19]} 1-0

[Event "Sydney Open 2019"]
[Site "Sydney"]
[Date "2019.04.27"]
[Round "8.2"]
[White "Lane, Gary W"]
[Black "Song, Raymond"]
[Result "0-1"]
[WhiteElo "2357"]
[BlackElo "2329"]
[PlyCount "82"]
[EventDate "2019.04.24"]
[EventType "swiss"]
[EventCountry "AUS"]
[TimeControl "5400+30"]
[WhiteClock "0:40:26"]
[BlackClock "0:03:44"]

1. e4 {[%emt 0:01:22]} e5 {[%emt 0:00:00]} 2. Nf3 {[%emt 0:01:02]} Nc6 {[%emt 0:00:03]} 3. Bb5 {[%emt 0:03:38]} Nf6 {[%emt 0:00:09]} 4. d3 {[%emt 0:00:11]} Bc5 {[%emt 0:00:09]} 5. c3 {[%emt 0:00:53]} O-O {[%emt 0:00:15]} 6. O-O {[%emt 0:01:39]} d6 {[%emt 0:00:08]} 7. Nbd2 {[%emt 0:08:26]} a6 {[%emt 0:00:06]} 8. Ba4 {[%emt 0:01:37]} b5 {[%emt 0:02:01]} 9. Bc2 {[%emt 0:02:50]} Bb6 {[%emt 0:00:58]} 10. a4 {[%emt 0:02:49]} Be6 {[%emt 0:02:29]} 11. b4 {[%emt 0:04:27]} h6 {[%emt 0:01:59]} 12. h3 {[%emt 0:16:53]} d5 {[%emt 0:00:36]} 13. Bb2 {[%emt 0:09:06]} Qd7 {[%emt 0:05:55]} 14. Nb3 {[%emt 0:11:42]} Rad8 {[%emt 0:15:10]} 15. exd5 {[%emt 0:01:47]} Nxd5 {[%emt 0:04:11]} 16. Nc5 {[%emt 0:09:05]} Bxc5 {[%emt 0:00:05]} 17. bxc5 {[%emt 0:00:06]} Nf4 {[%emt 0:01:35]} 18. Ne1 {[%emt 0:04:23]} e4 {[%emt 0:01:36]} 19. d4 {[%emt 0:01:57]} Bc4 {[%emt 0:00:15]} 20. Bxe4 {[%emt 0:00:10]} Bxf1 {[%emt 0:07:37]} 21. Kxf1 {[%emt 0:00:08]} Ne7 {[%emt 0:01:20]} 22. Qf3 {[%emt 0:01:21]} Neg6 {[%emt 0:01:18]} 23. g3 {[%emt 0:02:33]} Nd5 {[%emt 0:02:55]} 24. h4 {[%emt 0:04:15]} Nge7 {[%emt 0:02:02]} 25. Bc2 {[%emt 0:01:16]} Qh3+ {[%emt 0:07:44]} 26. Kg1 {[%emt 0:01:41]} f5 {[%emt 0:00:12]} 27. Bd3 {[%emt 0:02:04]} f4 {[%emt 0:01:52]} 28. Bf1 {[%emt 0:01:17]} Qe6 {[%emt 0:00:16]} 29. Nd3 {[%emt 0:00:49]} fxg3 {[%emt 0:00:31]} 30. Qxg3 {[%emt 0:00:04]} Nf5 {[%emt 0:00:57]} 31. Qh3 {[%emt 0:00:25]} Qg6+ {[%emt 0:00:52]} 32. Bg2 {[%emt 0:00:15]} Nxh4 {[%emt 0:00:31]} 33. Ne5 {[%emt 0:03:09]} Qxg2+ {[%emt 0:01:22]} 34. Qxg2 {[%emt 0:00:04]} Nxg2 {[%emt 0:00:03]} 35. Kxg2 {[%emt 0:00:04]} Rf5 {[%emt 0:01:01]} 36. axb5 {[%emt 0:01:12]} axb5 {[%emt 0:00:06]} 37. Ra7 {[%emt 0:01:05]} Rdf8 {[%emt 0:00:11]} 38. f3 {[%emt 0:00:09]} Ne3+ {[%emt 0:00:29]} 39. Kh2 {[%emt 0:00:06]} Rh5+ {[%emt 0:00:18]} 40. Kg1 {[%emt 0:00:13]} Rg5+ {[%emt 0:00:05]} 41. Kh2 {[%emt 0:00:33]} Rf4 {[%emt 0:00:42]} 0-1